bitfinex-derivatives/quotes_BTCF0:USTF0_20250810
["timestamp","ask_amount","ask_price","bid_price","bid_amount"]
[1754856813981,0.50447282,118430.0,118420.0,0.141685]
[1754856814182,0.50447282,118430.0,118420.0,0.156595]
[1754856814374,0.50447282,118430.0,118420.0,0.166265]
[1754856815685,0.90950788,118430.0,118420.0,0.084525]
[1754856816180,0.90950788,118430.0,118420.0,0.0001]
[1754856816981,1.76466788,118430.0,118420.0,0.0001]
[1754856817779,1.76470738,118430.0,118420.0,0.0001]
[1754856818789,1.35967232,118430.0,118420.0,0.0001]
[1754856818991,1.76470738,118430.0,118420.0,0.0001]
[1754856819892,1.35967232,118430.0,118420.0,0.0845273]
[1754856820091,1.35743232,118430.0,118420.0,0.1077273]
[1754856820390,1.35743232,118430.0,118420.0,0.1569273]
[1754856820891,1.35743232,118430.0,118420.0,0.1893773]
[1754856820892,1.27301212,118430.0,118420.0,0.1893773]
[1754856821093,1.35743232,118430.0,118420.0,0.1893773]
[1754856821387,0.42009212,118430.0,118420.0,0.2050673]
[1754856821583,0.50451202,118430.0,118420.0,0.2050673]
[1754856822492,0.50451202,118430.0,118420.0,0.1558673]
[1754856823093,0.50451202,118430.0,118420.0,0.1401773]
[1754856823880,0.50451202,118430.0,118420.0,0.1077273]
[1754856824080,0.42009212,118430.0,118420.0,0.2050673]
[1754856824291,0.50451232,118430.0,118420.0,0.2050673]
[1754856827894,0.39766212,118430.0,118420.0,0.2050673]
[1754856828394,0.42009212,118430.0,118420.0,0.2050673]
[1754856828694,0.39766212,118430.0,118420.0,0.2050673]
[1754856829286,0.39746212,118430.0,118420.0,0.2050673]
[1754856829594,0.39756212,118430.0,118420.0,0.2050673]
[1754856829786,0.38134212,118430.0,118420.0,0.2050673]
[1754856829982,0.3609,118430.0,118420.0,1.45682236]
[1754856830995,0.0001,118430.0,118420.0,1.45682236]
[1754856831387,0.0001,118430.0,118420.0,1.62570236]
[1754856833097,0.3609,118450.0,118440.0,0.132553]
[1754856833296,0.38134468,118450.0,118440.0,0.204953]
[1754856833496,0.38144468,118450.0,118440.0,0.204953]
[1754856833694,0.41988468,118450.0,118440.0,0.204953]
[1754856839301,0.39944,118450.0,118440.0,0.204953]
[1754856839498,0.39954,118450.0,118440.0,0.205053]
[1754856840093,0.38135183,118450.0,118440.0,0.205053]
[1754856840601,0.3609,118450.0,118440.0,1.45100806]
[1754856840804,0.0001,118450.0,118440.0,1.45100806]
[1754856841100,0.0001,118450.0,118440.0,1.81180806]
[1754856842291,0.0001,118450.0,118440.0,1.69433553]
[1754856842490,0.0001,118450.0,118440.0,1.86319153]
[1754856843294,0.0001,118450.0,118440.0,2.15075406]
[1754856843497,0.0001,118450.0,118440.0,1.86319153]
[1754856843694,0.28766253,118450.0,118440.0,0.205053]
[1754856843896,0.77150883,118450.0,118440.0,0.0845134]
[1754856844206,0.77150883,118450.0,118440.0,0.1077134]
[1754856844604,0.77150883,118450.0,118440.0,0.1569134]
[1754856845300,0.77150883,118450.0,118440.0,0.1422634]
[1754856846405,0.4839463,118450.0,118440.0,0.1422634]
[1754856846906,0.4839463,118450.0,118440.0,0.1559134]
[1754856847502,0.37711,118450.0,118440.0,0.2037834]
[1754856847808,0.01631,118450.0,118440.0,0.2037834]
[1754856850511,0.01615,118450.0,118440.0,0.2037834]
[1754856850809,0.01589,118450.0,118440.0,0.2037834]
[1754856852612,0.01615,118450.0,118440.0,0.2037834]
[1754856852812,0.01617,118430.0,118420.0,0.2406655]
[1754856853011,0.01617,118430.0,118420.0,0.3696826]
[1754856853012,0.90917034,118430.0,118420.0,0.3696826]
[1754856853517,0.1232276,118420.0,118410.0,1.241516]
[1754856853715,0.4841876,118420.0,118410.0,1.287776]
[1754856853914,0.39976,118420.0,118410.0,1.287776]
[1754856854213,0.39986,118420.0,118410.0,1.287876]
[1754856854909,0.37743,118420.0,118410.0,1.287876]
[1754856855610,0.0001,118420.0,118410.0,1.287876]
[1754856858520,0.4618578,118420.0,118410.0,1.287876]
[1754856858719,0.37743,118420.0,118410.0,1.287876]
[1754856859723,0.0001,118420.0,118410.0,1.287876]
[1754856862625,0.0002,118420.0,118410.0,1.287876]
[1754856863519,0.361,118420.0,118410.0,1.287876]
[1754856863720,0.86640154,118420.0,118410.0,0.11651]
[1754856863921,0.88883154,118420.0,118410.0,0.1544349]
[1754856864125,0.88883154,118420.0,118410.0,0.2009449]
[1754856864426,0.88883154,118420.0,118410.0,0.11651]
[1754856865326,0.88883154,118420.0,118410.0,0.2009449]
[1754856865529,0.4842878,118420.0,118410.0,0.2009449]
[1754856865825,0.88883154,118420.0,118410.0,0.2009449]
[1754856867116,0.0001,118420.0,118410.0,0.2009449]
[1754856867326,0.0001,118420.0,118410.0,0.60548864]
[1754856867628,0.0001,118420.0,118410.0,0.2009449]
[1754856868124,0.0001,118420.0,118410.0,0.48867956]
[1754856869731,0.0001,118420.0,118410.0,1.0278649]
[1754856873733,0.88892449,118420.0,118410.0,1.0253049]
[1754856874026,0.4842882,118420.0,118410.0,1.0253049]
[1754856874733,0.48231462,118420.0,118410.0,1.0253049]
[1754856874930,0.39788642,118420.0,118410.0,1.0253049]
[1754856875130,0.48231462,118420.0,118410.0,1.0253049]
[1754856875329,0.39788642,118420.0,118410.0,1.0245449]
[1754856875722,0.37743,118420.0,118410.0,1.0245449]
[1754856876322,0.48231887,118420.0,118410.0,1.0245449]
[1754856879234,0.39789067,118420.0,118410.0,1.0245449]
[1754856879430,0.37717,118420.0,118410.0,1.0245449]
[1754856879634,0.0001,118420.0,118410.0,1.0245449]
[1754856881235,0.02058664,118420.0,118410.0,1.0245449]
[1754856885039,0.0001,118420.0,118410.0,1.0245449]
[1754856886629,0.88942449,118420.0,118410.0,1.0199849]
[1754856886837,0.91002896,118420.0,118410.0,1.0199849]
[1754856887134,0.50539267,118420.0,118410.0,1.0199849]
[1754856890742,0.38140447,118420.0,118410.0,1.0199849]
[1754856891748,0.38150447,118420.0,118410.0,1.0199849]
[1754856893555,0.48296267,118420.0,118410.0,1.0199849]
[1754856894148,0.39853447,118420.0,118410.0,1.0199849]
[1754856894848,0.48296267,118420.0,118410.0,1.0199849]
[1754856895354,0.77074608,118420.0,118410.0,1.0199849]
[1754856896046,0.68631788,118420.0,118410.0,1.0199849]
[1754856896349,0.48296267,118420.0,118410.0,1.0199849]
[1754856897154,0.39853447,118420.0,118410.0,1.0199849]
[1754856897549,0.48296267,118420.0,118410.0,1.0199849]
[1754856898454,0.48296267,118420.0,118410.0,0.2009449]
[1754856898649,0.48296267,118420.0,118410.0,1.0151849]
[1754856900257,0.39853447,118420.0,118410.0,1.0151849]
[1754856900457,0.02060447,118420.0,118410.0,1.30296831]
[1754856900650,0.54851686,118440.0,118430.0,0.11888]
[1754856900651,0.3608,118440.0,118430.0,0.11888]
[1754856900956,0.3608,118440.0,118430.0,1.0167411]
[1754856901354,0.634839,118450.0,118430.0,1.47336201]
[1754856901355,0.3608,118450.0,118430.0,1.47336201]
[1754856901554,0.56428751,118460.0,118450.0,0.2032869]
[1754856901756,0.85207092,118460.0,118450.0,0.2032869]
[1754856901955,0.78448122,118460.0,118450.0,0.2033869]
[1754856902364,0.86888092,118460.0,118450.0,0.2033869]
[1754856902666,0.89058092,118460.0,118450.0,0.2033869]
[1754856903262,0.80618122,118460.0,118450.0,0.2033869]
[1754856903462,0.51839781,118460.0,118450.0,0.2033869]
[1754856904061,0.60279771,118460.0,118450.0,0.2033869]
[1754856904866,0.4997195,118460.0,118450.0,0.2033869]
[1754856905158,0.4406995,118460.0,118450.0,1.30329031]
[1754856905661,0.0798995,118460.0,118450.0,1.30329031]
[1754856906461,0.01315615,118460.0,118450.0,1.66409031]
[1754856906863,0.3608,118470.0,118460.0,0.49020331]
[1754856909463,0.3920245,118480.0,118470.0,0.07021]
[1754856909764,0.3921245,118480.0,118470.0,0.2024128]
[1754856910160,0.45955192,118480.0,118470.0,0.2024128]
[1754856911468,0.48026192,118480.0,118470.0,0.2024128]
[1754856912572,0.50057029,118480.0,118470.0,0.2024128]
[1754856912775,0.51709029,118480.0,118470.0,0.2024128]
[1754856913173,0.51719029,118480.0,118470.0,0.2024128]
[1754856913374,0.62479599,118480.0,118470.0,0.2024128]
[1754856913864,0.56225029,118480.0,118470.0,0.2024128]
[1754856914675,0.46092759,118480.0,118470.0,0.49019621]
[1754856915174,0.46092759,118480.0,118470.0,0.2024128]
[1754856916075,0.48163759,118480.0,118470.0,0.2024128]
[1754856916573,0.49815759,118480.0,118470.0,0.2024128]
[1754856919374,0.47784922,118480.0,118470.0,0.2024128]
[1754856919577,0.47794922,118480.0,118470.0,0.2024128]
[1754856920575,0.47784922,118480.0,118470.0,0.2024128]
[1754856921276,0.47794922,118480.0,118470.0,0.2024128]
[1754856922075,0.48595564,118480.0,118470.0,0.2024128]
[1754856922387,0.44862564,118480.0,118470.0,0.2024128]
[1754856922569,0.48585564,118480.0,118470.0,0.2024128]
[1754856922878,0.53117564,118480.0,118470.0,0.2024128]
[1754856923374,0.54321687,118480.0,118470.0,0.2024128]
[1754856928582,0.62756768,118480.0,118470.0,0.2024128]
[1754856928983,0.56014026,118480.0,118470.0,0.2024128]
[1754856929282,0.47575266,118480.0,118470.0,0.2024128]
[1754856930487,0.56014056,118480.0,118470.0,0.2024128]
[1754856933284,0.0844022,118460.0,118450.0,0.0844089]
[1754856933498,0.1669593,118450.0,118440.0,0.2532399]
[1754856933679,0.83580414,118450.0,118440.0,0.2532399]
[1754856934976,0.46361143,118450.0,118440.0,0.57901331]
[1754856935181,0.46371143,118450.0,118440.0,0.65914331]
[1754856935486,0.46371143,118450.0,118440.0,0.3713599]
[1754856936374,0.54812073,118450.0,118440.0,0.2533399]
[1754856936579,0.83590414,118450.0,118440.0,0.2533399]
[1754856937687,0.54812073,118450.0,118440.0,0.2866599]
[1754856937893,0.46371143,118450.0,118440.0,0.3736899]
[1754856938085,0.54812073,118450.0,118440.0,0.3736899]
[1754856939882,0.54812073,118450.0,118440.0,0.3593399]
[1754856940280,0.54812073,118450.0,118440.0,0.2533399]
[1754856942283,0.54812073,118450.0,118440.0,0.2866599]
[1754856942486,0.46371143,118450.0,118440.0,0.3736899]
[1754856942682,0.54812083,118450.0,118440.0,0.3736899]
[1754856942884,0.54812083,118450.0,118440.0,0.3245699]
[1754856943192,0.54812083,118450.0,118440.0,0.3736899]
[1754856943789,0.44049143,118450.0,118440.0,0.3736899]
[1754856944093,0.46399143,118450.0,118440.0,0.3736899]
[1754856944983,0.46399143,118450.0,118440.0,1.1843699]
[1754856945485,0.54840083,118450.0,118440.0,1.1843699]
[1754856946491,0.54840083,118450.0,118440.0,0.3736899]
[1754856946795,0.46399143,118450.0,118440.0,0.3736899]
[1754856947397,0.44039143,118450.0,118440.0,0.3736899]
[1754856947695,0.46399143,118450.0,118440.0,0.3736899]
[1754856947895,0.54840083,118450.0,118440.0,0.3736899]
[1754856948289,0.46399143,118450.0,118440.0,0.3736899]
[1754856948488,0.54840093,118450.0,118440.0,0.3736899]
[1754856949796,0.46399143,118450.0,118440.0,0.3736899]
[1754856950395,0.46398197,118450.0,118440.0,0.3736899]
[1754856950799,0.54839137,118450.0,118440.0,0.3736899]
[1754856951591,0.46398197,118450.0,118440.0,0.3736899]
[1754856952797,0.39767197,118450.0,118440.0,0.3736899]
[1754856952996,0.03687197,118450.0,118440.0,0.3736899]
[1754856953195,0.03687197,118450.0,118440.0,0.77819277]
[1754856953394,0.01662,118450.0,118440.0,0.77819277]
[1754856953694,0.03733,118450.0,118440.0,0.77819277]
[1754856954199,0.01662,118450.0,118440.0,0.77819277]
[1754856954593,0.0001,118450.0,118440.0,0.77819277]
[1754856955001,0.0001,118450.0,118440.0,0.3736899]
[1754856955194,0.03629,118450.0,118440.0,0.3736899]
[1754856955400,0.08204,118450.0,118440.0,0.3736899]
[1754856957796,0.01584,118450.0,118440.0,0.3736899]
[1754856957996,0.93175227,118450.0,118440.0,0.3245699]
[1754856958197,0.83527288,118450.0,118440.0,0.0001]
[1754856958599,0.83527288,118450.0,118440.0,0.0845166]
[1754856958801,0.83527288,118450.0,118440.0,0.0001]
[1754856958994,0.1220466,118440.0,118430.0,0.0844232]
[1754856959195,0.1663637,118430.0,118420.0,0.3377224]
[1754856959393,0.83518718,118430.0,118420.0,0.3377224]
[1754856959593,0.83518718,118430.0,118420.0,0.2532918]
[1754856959797,0.83518718,118430.0,118420.0,0.1688612]
[1754856962201,0.54743269,118430.0,118420.0,0.1688612]
[1754856962405,0.54753269,118430.0,118420.0,0.1689612]
[1754856963501,0.9522499,118430.0,118420.0,0.1689612]
[1754856963803,1.02119836,118430.0,118420.0,0.1689612]
[1754856964007,0.61648115,118430.0,118420.0,0.1689612]
[1754856964504,0.61648115,118430.0,118420.0,0.2893112]
[1754856966809,0.61648115,118430.0,118420.0,0.2239212]
[1754856967000,1.02119836,118430.0,118420.0,0.1689612]
[1754856967999,0.53205745,118430.0,118420.0,0.2402812]
[1754856968208,0.53166745,118430.0,118420.0,0.2886212]
[1754856972617,0.61609105,118430.0,118420.0,0.2886212]
[1754856975118,1.02080826,118430.0,118420.0,0.1689612]
[1754856975313,1.02080826,118430.0,118420.0,0.0845308]
[1754856976110,0.61609105,118430.0,118420.0,0.0845308]
[1754856981713,0.61609105,118430.0,118420.0,0.1663308]
[1754856982425,0.46559745,118430.0,118420.0,0.49195143]
[1754856982620,0.45011745,118430.0,118420.0,1.30175143]
[1754856982811,0.0001,118430.0,118420.0,1.30175143]
[1754856983014,1e-07,118430.0,118420.0,1.66245143]
[1754856983328,0.37975623,118450.0,118440.0,0.2040769]
[1754856983519,0.37975623,118450.0,118440.0,1.30163753]
[1754856983826,0.3608,118460.0,118450.0,0.2040698]
[1754856984025,0.3608,118460.0,118450.0,0.49183043]
[1754856984026,0.02020774,118460.0,118450.0,0.49183043]
[1754856984220,0.40046779,118470.0,118460.0,0.1312826]
[1754856984523,0.43617282,118470.0,118460.0,0.2040626]
[1754856984725,0.48074282,118470.0,118460.0,0.2040626]
[1754856989425,0.48072333,118470.0,118460.0,0.2040626]
[1754856991432,0.46053779,118470.0,118460.0,0.2040626]
[1754856996935,0.54493369,118470.0,118460.0,0.2040626]
[1754856998137,0.46053779,118470.0,118460.0,0.2040626]
[1754856999228,0.54493369,118470.0,118460.0,0.2040626]
[1754856999428,0.56509996,118470.0,118460.0,0.2040626]
[1754857000039,0.48070406,118470.0,118460.0,0.2040626]
[1754857000837,0.56509996,118470.0,118460.0,0.2040626]
[1754857002638,0.56509996,118470.0,118460.0,0.2039826]
[1754857005740,0.48070406,118470.0,118460.0,0.2039826]
[1754857006141,0.56509986,118470.0,118460.0,0.2039826]
[1754857006741,0.48070406,118470.0,118460.0,0.2039826]
[1754857006939,0.02026627,118470.0,118460.0,1.30033807]
[1754857007138,0.0001,118470.0,118460.0,1.66113807]
[1754857007642,1e-07,118470.0,118460.0,1.66113807]
[1754857009542,0.02019342,118470.0,118460.0,1.58843807]
[1754857009743,1e-07,118470.0,118460.0,1.58843807]
[1754857010544,1e-07,118470.0,118460.0,1.3008826]
[1754857010844,1e-07,118470.0,118460.0,1.58843807]
[1754857012236,0.02024378,118470.0,118460.0,1.58843807]
[1754857012747,0.02024378,118470.0,118460.0,1.66075807]
[1754857013348,0.02024378,118470.0,118460.0,1.3732026]
[1754857013545,0.46219378,118470.0,118460.0,1.0120426]
[1754857015136,0.54658958,118470.0,118460.0,0.9774726]
[1754857015345,0.54658958,118470.0,118460.0,1.0120426]
[1754857016146,1.19494505,118470.0,118460.0,0.8927626]
[1754857016349,1.19494505,118470.0,118460.0,0.0844026]
[1754857018049,1.19494505,118470.0,118460.0,0.1084626]
[1754857020357,0.82299378,118470.0,118460.0,0.1901526]
[1754857020659,0.82299378,118470.0,118460.0,0.49139807]
[1754857020861,0.46219378,118470.0,118460.0,0.49139807]
[1754857021255,0.39716378,118470.0,118460.0,0.49139807]
[1754857021455,0.46219378,118470.0,118460.0,0.49139807]
[1754857021956,0.46219378,118470.0,118460.0,0.2038426]
[1754857022152,0.41787378,118470.0,118460.0,0.2038426]
[1754857022357,0.39716378,118470.0,118460.0,0.49139807]
[1754857022658,0.38104378,118470.0,118460.0,0.49139807]
[1754857023462,0.02024378,118470.0,118460.0,0.85219807]
[1754857023655,1e-07,118470.0,118460.0,0.77987807]
[1754857025057,1e-07,118470.0,118460.0,0.4923226]
[1754857025258,1e-07,118470.0,118460.0,0.77987807]
[1754857026764,1e-07,118470.0,118460.0,0.4923226]
[1754857026963,1e-07,118470.0,118460.0,0.77987807]
[1754857027468,0.04343,118480.0,118460.0,0.94867897]
[1754857027664,0.1000866,118480.0,118470.0,1.0127559]
[1754857029263,0.5452753,118480.0,118470.0,1.0127559]
[1754857029468,0.4609866,118480.0,118470.0,1.0128559]
[1754857035373,0.44079,118480.0,118470.0,1.0128559]
[1754857037379,0.44079,118480.0,118470.0,1.30041137]
[1754857038471,0.46097774,118480.0,118470.0,1.30041137]
[1754857038775,0.46097774,118480.0,118470.0,1.0128559]
[1754857039379,0.44079,118480.0,118470.0,1.0128559]
[1754857039681,0.41817,118480.0,118470.0,1.0128559]
[1754857039977,0.37596,118480.0,118470.0,1.30041137]
[1754857041576,0.01516,118480.0,118470.0,1.30041137]
[1754857044280,0.0001,118480.0,118470.0,1.30041137]
[1754857049675,0.02031617,118480.0,118470.0,1.30041137]
[1754857052688,0.45128821,118490.0,118470.0,1.46909957]
[1754857052887,0.45128821,118490.0,118480.0,0.40807547]
[1754857053093,0.45128821,118490.0,118480.0,0.49246527]
[1754857053978,0.42900476,118490.0,118480.0,0.49246527]
[1754857054175,0.42910476,118490.0,118480.0,0.49256527]
[1754857056786,0.46778683,118490.0,118480.0,0.49256527]
[1754857058081,0.46778683,118490.0,118480.0,0.44445527]
[1754857058289,0.9513852,118490.0,118480.0,0.0844898]
[1754857058583,0.9513852,118490.0,118480.0,0.0001]
[1754857059592,1.7571852,118490.0,118480.0,0.0001]
[1754857060186,0.1959571,118470.0,118460.0,0.1688024]
[1754857060492,1.20511257,118470.0,118460.0,0.1688024]
[1754857061279,1.20511257,118470.0,118460.0,0.1921124]
[1754857061486,1.20521257,118470.0,118460.0,0.1922124]
[1754857062394,0.9176571,118470.0,118460.0,0.2237624]
[1754857063599,0.9176571,118470.0,118460.0,0.2705824]
[1754857064194,1.20521257,118470.0,118460.0,0.1689024]
[1754857064896,1.22533403,118470.0,118460.0,0.1689024]
[1754857066297,2.19955803,118470.0,118460.0,0.1689024]
[1754857066503,0.1959641,118460.0,118450.0,0.0844106]
[1754857066800,0.86444103,118460.0,118450.0,0.0844106]
[1754857071401,1.22524103,118460.0,118450.0,0.0844106]
[1754857071601,1.22534103,118460.0,118450.0,0.0845106]
[1754857074407,1.22534103,118460.0,118450.0,0.0845113]
[1754857075494,1.22534103,118460.0,118450.0,0.1078213]
[1754857075803,1.22534103,118460.0,118450.0,0.1393713]
[1754857077506,1.22534103,118460.0,118450.0,0.1078213]
[1754857078206,0.93778556,118460.0,118450.0,0.1078213]
[1754857078507,1.22534103,118460.0,118450.0,0.1078213]
[1754857081202,1.22534103,118460.0,118450.0,0.0001]
[1754857081396,1.22534103,118460.0,118440.0,0.2532493]
[1754857081397,0.1059712,118450.0,118440.0,0.2532493]
[1754857081599,1.66900813,118450.0,118440.0,0.0844137]
[1754857081906,1.76116546,118450.0,118440.0,0.0844137]
[1754857084107,1.78011204,118450.0,118440.0,0.0844137]
[1754857084408,1.78021204,118450.0,118440.0,0.0845137]
[1754857085507,1.78021204,118450.0,118430.0,0.3228172]
[1754857085508,0.1326384,118440.0,118430.0,0.2532688]
[1754857085709,0.86556533,118440.0,118430.0,0.1688445]
[1754857085898,0.84544387,118440.0,118430.0,0.1688445]
[1754857086210,0.86547973,118440.0,118430.0,0.1688445]
[1754857090611,0.86547973,118440.0,118430.0,0.2233745]
[1754857090811,0.86557973,118440.0,118430.0,0.2863545]
[1754857091515,0.57802426,118440.0,118430.0,0.2863545]
[1754857091915,0.57802426,118440.0,118430.0,0.57390997]
[1754857092118,1.38194426,118440.0,118430.0,0.57390997]
[1754857092416,1.38194426,118440.0,118430.0,0.2863545]
[1754857097524,1.66949973,118440.0,118430.0,0.0845221]
[1754857101233,1.7299455,118440.0,118430.0,0.0845221]
[1754857103138,1.66949973,118440.0,118430.0,0.0845221]
[1754857103829,2.03029973,118440.0,118430.0,0.0845221]
[1754857104832,2.03029973,118440.0,118430.0,0.1076921]
[1754857106737,2.03029973,118440.0,118430.0,0.0845221]
[1754857108442,2.03029973,118440.0,118430.0,0.1076921]
[1754857110443,2.03029973,118440.0,118430.0,0.0845221]
[1754857115238,2.03029973,118440.0,118430.0,0.0001]
[1754857115541,2.41479903,118440.0,118430.0,0.0001]
[1754857115736,0.49972274,118430.0,118420.0,0.1688622]
[1754857115938,0.8805586,118430.0,118420.0,0.1688622]
[1754857117945,1.2413586,118430.0,118420.0,0.1688622]
[1754857118141,1.2414586,118430.0,118420.0,0.1689622]
[1754857119646,1.30851606,118430.0,118420.0,0.1689622]
[1754857119846,1.30851606,118430.0,118420.0,0.1914822]
[1754857120146,0.58691606,118430.0,118420.0,0.1914822]
[1754857120347,1.30851606,118430.0,118420.0,0.1914822]
[1754857121750,1.02096059,118430.0,118420.0,0.1914822]
[1754857122050,1.30851606,118430.0,118420.0,0.1914822]
[1754857123347,1.30851606,118430.0,118420.0,0.0845324]
[1754857127051,1.30851606,118430.0,118420.0,0.1309724]
[1754857127246,1.30851606,118430.0,118420.0,0.2018124]
[1754857131355,1.30851606,118430.0,118420.0,0.0577124]
[1754857131356,1.22340606,118430.0,118420.0,0.0577124]
[1754857131557,0.4222966,118390.0,118320.0,0.1973498]
[1754857131754,0.084518,118300.0,118290.0,20.0]
[1754857131954,0.084518,118300.0,118290.0,19.48601597]
[1754857131955,2.23780242,118300.0,118290.0,19.48601597]
[1754857132154,2.50203418,118300.0,118290.0,19.03138068]
[1754857132353,2.50203418,118300.0,118290.0,18.894854]
[1754857132556,2.50213418,118300.0,118290.0,18.77312684]
[1754857132754,2.56257995,118300.0,118290.0,18.48415088]
[1754857132953,2.53619154,118300.0,118290.0,18.39103357]
[1754857133152,2.76711954,118300.0,118290.0,16.28461565]
[1754857133456,2.93619154,118300.0,118290.0,14.71149141]
[1754857133656,3.01105511,118300.0,118290.0,14.00967788]
[1754857133955,3.04099954,118300.0,118290.0,12.69381115]
[1754857134159,2.8546404,118300.0,118290.0,12.2825863]
[1754857134359,2.7498324,118300.0,118290.0,11.48966906]
[1754857134565,2.7498324,118300.0,118290.0,11.18291184]
[1754857134856,2.9849336,118300.0,118290.0,8.94543871]
[1754857135059,1.75413922,118300.0,118290.0,5.30055852]
[1754857135256,2.3825081,118300.0,118290.0,5.30055852]
[1754857135458,1.5275081,118300.0,118290.0,5.30055852]
[1754857135658,2.3826681,118300.0,118290.0,5.32307852]
[1754857135850,2.3826681,118300.0,118290.0,5.35669852]
[1754857136052,2.3826681,118300.0,118290.0,2.16030352]
[1754857136251,2.3826681,118300.0,118290.0,1.90269802]
[1754857136556,1.1215178,118300.0,118290.0,0.58989377]
[1754857136859,2.6272259,118300.0,118290.0,0.61241377]
[1754857137165,3.0332162,118300.0,118290.0,0.61241377]
[1754857137565,3.0332162,118300.0,118290.0,0.58989377]
[1754857137766,2.0175578,118300.0,118290.0,1.83075635]
[1754857137961,1.1607178,118300.0,118290.0,1.83075635]
[1754857138266,0.6607178,118300.0,118290.0,1.83075635]
[1754857138566,0.6607178,118300.0,118290.0,3.14160995]
[1754857138567,0.20475804,118300.0,118290.0,3.14160995]
[1754857138766,0.30879156,118300.0,118290.0,3.14160995]
[1754857139067,0.22427536,118300.0,118290.0,2.73561965]
[1754857139367,0.30879216,118300.0,118290.0,3.05022336]
[1754857139665,0.30879216,118300.0,118290.0,2.96570006]
[1754857139970,0.66264913,118300.0,118290.0,0.52102718]
[1754857140358,0.66264913,118300.0,118290.0,0.60555048]
[1754857140557,0.66264913,118300.0,118290.0,2.85451521]
[1754857140758,0.19013391,118300.0,118290.0,3.41102336]
[1754857141260,0.08618268,118300.0,118290.0,3.41102336]
[1754857141564,0.08618268,118300.0,118290.0,4.26730336]
[1754857141961,0.27465031,118300.0,118290.0,4.26730336]
[1754857142168,0.27465031,118300.0,118290.0,3.90650336]
[1754857142469,0.27465051,118300.0,118290.0,3.90650336]
[1754857143266,0.27465051,118300.0,118290.0,3.83796727]
[1754857143559,0.08618268,118300.0,118290.0,3.83796727]
[1754857144464,0.08618268,118300.0,118290.0,4.19876727]
[1754857144968,0.02618268,118300.0,118290.0,4.19866727]
[1754857145164,0.10389194,118310.0,118300.0,0.2999861]
[1754857145361,0.13738194,118310.0,118300.0,0.88114653]
[1754857145664,0.48839758,118310.0,118300.0,1.72642653]
[1754857145862,0.40388798,118310.0,118300.0,1.72642653]
[1754857146177,0.40398798,118310.0,118300.0,1.72652653]
[1754857146360,0.76478798,118310.0,118300.0,1.72652653]
[1754857146666,0.36096506,118310.0,118300.0,1.72652653]
[1754857146873,0.16670312,118310.0,118300.0,1.72652653]
[1754857147061,0.09248604,118310.0,118300.0,1.72652653]
[1754857147473,0.16670312,118310.0,118300.0,1.72652653]
[1754857148062,0.13801962,118320.0,118310.0,0.34853]
[1754857148362,0.3488329,118320.0,118310.0,0.90454204]
[1754857148563,0.3488329,118320.0,118310.0,1.74974204]
[1754857148864,0.33236911,118320.0,118310.0,1.74974204]
[1754857149261,0.24861911,118320.0,118310.0,1.74974204]
[1754857149461,0.06813911,118320.0,118310.0,3.05993647]
[1754857149668,0.49755691,118330.0,118310.0,3.05993647]
[1754857149669,0.09031,118340.0,118320.0,0.50559965]
[1754857149864,0.14926,118340.0,118330.0,0.7545061]
[1754857150066,0.24617592,118340.0,118330.0,0.62000568]
[1754857150268,0.27909592,118340.0,118330.0,0.62000568]
[1754857150664,0.36358432,118340.0,118330.0,0.62000568]
[1754857150964,0.27919592,118340.0,118330.0,2.61014826]
[1754857151167,0.19544592,118340.0,118330.0,2.61014826]
[1754857151463,0.0001,118340.0,118330.0,2.4989704]
[1754857151667,0.15355536,118340.0,118330.0,2.33865838]
[1754857151966,0.1748984,118340.0,118330.0,3.59376868]
[1754857152865,0.5356984,118340.0,118330.0,3.59376868]
[1754857153165,0.5108984,118340.0,118330.0,3.59344868]
[1754857153355,0.5108984,118340.0,118330.0,3.50895288]
[1754857153560,0.4453884,118340.0,118330.0,2.74464868]
[1754857153765,0.79944583,118340.0,118330.0,0.3486155]
[1754857154167,1.64712583,118340.0,118330.0,0.20791]
[1754857154359,1.64712583,118340.0,118330.0,0.0001]
[1754857154760,1.68090882,118340.0,118330.0,0.0001]
[1754857154973,1.78090882,118340.0,118330.0,0.0001]
[1754857155764,1.84744274,118340.0,118330.0,0.0001]
[1754857156470,2.25343304,118340.0,118330.0,0.0001]
[1754857156864,2.28285984,118340.0,118330.0,0.0001]
[1754857157169,0.3488396,118310.0,118300.0,0.5175663]
[1754857157469,0.83292516,118310.0,118300.0,2.8870242]
[1754857157964,0.47212516,118310.0,118300.0,2.8870242]
[1754857158170,0.83302516,118310.0,118300.0,2.86681742]
[1754857159169,0.83302516,118310.0,118300.0,2.74478958]
[1754857160268,0.83302516,118310.0,118300.0,2.14309113]
[1754857160568,0.83302516,118310.0,118300.0,2.74478958]
[1754857160769,0.93771315,118310.0,118300.0,2.74490958]
[1754857160970,1.01273504,118310.0,118300.0,2.74490958]
[1754857161166,0.82429705,118310.0,118300.0,2.33891928]
[1754857161371,0.74927516,118310.0,118300.0,2.74490958]
[1754857161967,0.77407516,118310.0,118300.0,2.74490958]
[1754857162269,0.77407516,118310.0,118300.0,2.54920143]
[1754857162570,0.77407516,118310.0,118300.0,2.74490958]
[1754857163270,0.77407516,118310.0,118300.0,2.69921976]
[1754857163472,0.77407516,118310.0,118300.0,4.11545275]
[1754857163473,0.84931535,118310.0,118300.0,4.11545275]
[1754857163875,0.77407516,118310.0,118300.0,4.11545275]
[1754857165471,0.77407516,118310.0,118300.0,4.20714275]
[1754857166174,0.77407516,118310.0,118300.0,4.18683617]
[1754857166379,0.84931535,118310.0,118300.0,4.13950704]
[1754857166574,1.68911535,118310.0,118300.0,4.13950704]
[1754857168281,1.74806535,118310.0,118300.0,4.19086704]
[1754857169775,1.67282516,118310.0,118300.0,4.19086704]
[1754857170380,1.40849516,118310.0,118300.0,4.19086704]
[1754857170681,0.56869516,118310.0,118300.0,4.19086704]
[1754857171479,0.55958772,118310.0,118300.0,4.19086704]
[1754857171881,0.12338556,118310.0,118300.0,4.19086704]
[1754857172077,0.18370816,118310.0,118300.0,4.19086704]
[1754857172278,0.3608,118330.0,118320.0,0.3436724]
[1754857172473,0.18010498,118330.0,118320.0,0.91867325]
[1754857172783,0.09693157,118330.0,118320.0,1.76379325]
[1754857173286,0.18142687,118330.0,118320.0,1.76379325]
[1754857173477,0.18152687,118330.0,118320.0,1.76389325]
[1754857173779,0.09703157,118330.0,118320.0,1.76389325]
[1754857173984,0.18152687,118330.0,118320.0,1.76389325]
[1754857174474,0.09703157,118330.0,118320.0,1.76389325]
[1754857174774,0.09703157,118330.0,118320.0,2.51747953]
[1754857174975,0.0001,118330.0,118320.0,2.71318768]
[1754857175376,0.0001,118330.0,118320.0,1.03389683]
[1754857175579,0.1227567,118300.0,118290.0,0.88533938]
[1754857175776,0.11939,118300.0,118290.0,2.00437829]
[1754857175986,0.907341,118310.0,118300.0,0.3718667]
[1754857176181,0.907341,118310.0,118300.0,0.777857]
[1754857176485,0.99980447,118310.0,118300.0,1.5923489]